fUSD/lending_fUSD_20240903
["ID","MTS","AMOUNT","RATE_DAILY","PERIOD"]
[337039891,1725372643393,-360.79775902,0.0001488,2]
[337039892,1725372643404,-939.09356691,0.0001488,2]
[337039893,1725372643415,-19698.4265057,0.0001488,2]
[337039894,1725372643435,-5400.0,0.0001488,2]
[337039895,1725372643445,-1945.1962612,0.0001488,2]
[337039897,1725372643457,-320.67306707,0.0001488,2]
[337039899,1725372643468,-677.73625,0.0001488,2]
[337039901,1725372643479,-1598.31428799,0.0001488,2]
[337039903,1725372643497,-735.896,0.0001488,2]
[337039905,1725372643509,-7488.03175676,0.0001488,2]
[337039908,1725372643528,-500.0,0.00014879,2]
[337039910,1725372643538,-8592.1178709,0.0001488,2]
[337039912,1725372643549,-1113.8701207,0.0001488,2]
[337039917,1725372643585,-298.93134934,0.0001488,2]
[337039919,1725372643596,-9291.90965979,0.0001488,2]
[337039921,1725372643607,-1838.78,0.0001488,2]
[337039931,1725372643691,-2378.26599067,0.0001488,2]
[337040118,1725372646454,-643.05,0.00014799,2]
[337040119,1725372646464,-31.74429573,0.00014799,2]
[337040120,1725372646477,-611.30570427,0.00014799,2]
[337040121,1725372646488,-643.05,0.00014799,2]
[337040123,1725372646501,-500.0,0.00014799,2]
[337040124,1725372646511,-500.0,0.00014799,2]
[337040126,1725372646528,-500.0,0.00014799,2]
[337040128,1725372646538,-1148.67,0.0001487,2]
[337040130,1725372646548,-147.55634071,0.00014871,2]
[337040133,1725372646560,-495.49365929,0.00014871,2]
[337040134,1725372646569,-500.0,0.00014879,2]
[337040136,1725372646579,-643.05,0.00014879,2]
[337040138,1725372646588,-643.05,0.00014879,2]
[337040140,1725372646598,-1148.67,0.00014879,2]
[337040142,1725372646608,-643.05,0.00014879,2]
[337040144,1725372646618,-1148.67,0.00014879,2]
[337040146,1725372646628,-2371.47166885,0.0001488,2]
[337040148,1725372646640,-432.00902886,0.0001488,2]
[337040150,1725372646651,-10152.93128189,0.0001488,2]
[337040151,1725372646663,-835.91504645,0.0001488,2]
[337040152,1725372646674,-1401.42201098,0.0001488,2]
[337040153,1725372646686,-17189.36167256,0.0001488,2]
[337040154,1725372646698,-585.68389986,0.0001488,2]
[337040155,1725372646710,-400.0,0.0001488,2]
[337040156,1725372646722,-3972.33381361,0.0001488,2]
[337040157,1725372646734,-10391.97917367,0.0001488,2]
[337040158,1725372646751,-438.217861,0.00014871,2]
[337040159,1725372646763,-61.782139,0.00014871,2]
[337040160,1725372646772,-250.857861,0.0001488,2]
[337040161,1725372646807,-3905.4936493,0.0001488,2]
[337040162,1725372646819,-3690.46625153,0.0001488,2]
[337040163,1725372646831,-873.74712415,0.0001488,2]
[337040164,1725372647013,-1113.91876055,0.0001488,2]
[337040165,1725372647031,-4999.62043342,0.0001488,2]
[337040166,1725372647042,-525.763976,0.0001488,2]
[337040167,1725372647053,-5022.72191446,0.0001488,2]
[337040168,1725372647065,-557.8322401,0.0001488,2]
[337040169,1725372647076,-685.11662691,0.0001488,2]
[337040170,1725372647087,-879.9737992,0.0001488,2]
[337040171,1725372647098,-550.0,0.0001488,2]
[337040172,1725372647110,-626.08111507,0.0001488,2]
[337040173,1725372647122,-618.3903605,0.0001488,2]
[337040174,1725372647133,-1269.0,0.0001488,2]
[337040175,1725372647143,-2133.07562019,0.0001488,2]
[337040176,1725372647162,-500.0,0.00014879,2]
[337040177,1725372647171,-915.44956061,0.0001488,2]
[337040178,1725372647182,-805.58226419,0.0001488,2]
[337040179,1725372647193,-2420.86061955,0.0001488,2]
[337040180,1725372647205,-493.70431179,0.0001488,2]
[337040181,1725372647216,-5507.97849394,0.0001488,2]
[337040182,1725372647227,-481.61185414,0.0001488,2]
[337040183,1725372647242,-5857.2903001,0.0001488,2]
[337040184,1725372647253,-10164.3352765,0.0001488,2]
[337040185,1725372647263,-2283.42218229,0.0001488,2]
[337040186,1725372647274,-675.75650086,0.0001488,2]
[337040187,1725372668645,29298.394461,0.00011781,7]
[337040279,1725372749210,1246.05,0.0001186,2]
[337040280,1725372764025,151.0,0.00010959,2]
[337040281,1725372764384,301.0,0.00010959,2]
[337040282,1725372765758,959.0,0.00010959,2]
[337040305,1725373057382,150.29,0.00010827,2]
[337040306,1725373057611,150.29,0.00012632,2]
[337040308,1725373142071,309.83,0.00010959,2]
[337040468,1725373203006,150.0,0.00010959,2]
[337040469,1725373203205,150.0,0.00010959,2]
[337040470,1725373203433,150.0,0.00010959,2]
[337040471,1725373203648,150.0,0.00010959,2]
[337040472,1725373203862,150.0,0.00010959,2]
[337040473,1725373204073,150.0,0.00010959,2]
[337040474,1725373204287,150.0,0.00010959,2]
[337040475,1725373204539,150.0,0.00010959,2]
[337040476,1725373204706,150.0,0.00010959,2]
[337040477,1725373204905,150.0,0.00010959,2]
[337040478,1725373205353,150.0,0.00010959,2]
[337040479,1725373205561,150.0,0.00010959,2]
[337040480,1725373205742,203.47737418,0.00010959,2]
[337040486,1725373239694,550.0,0.00011,2]
[337040487,1725373240799,600.0,0.00013,2]
[337040488,1725373422538,210.0,0.000129,2]
[337040489,1725373429712,200.13472148,0.00012836,2]
[337040490,1725373508450,6155.65723151,0.00013,2]
[337040491,1725373514935,1223.2,0.00011176,2]
[337040492,1725373525369,970.55550502,0.000108,2]
[337040493,1725373529278,49397.2333282,0.000101,2]
[337040494,1725373553329,228025.89069752,0.00010399,2]
[337040495,1725373565727,1474.03846924,0.0001,2]
[337040496,1725373571062,165.26,0.00012875,2]
[337040497,1725373619614,733.78,0.00012858,2]
[337040498,1725373632419,1000.0,0.000123,2]
[337040499,1725373646303,250.0,0.00012732,2]
[337040500,1725373680477,1085.19216691,0.0001,2]
[337040501,1725373687005,150.29,0.00010132,2]
[337040502,1725373690183,11128.8973269,0.0001251,2]
[337040504,1725373701734,290.35456241,0.000125,2]
[337040505,1725373725121,710.34553941,0.00013,2]
[337040506,1725373728970,159.49,0.00010959,2]
[337040507,1725373745519,250.0,0.00012658,2]
[337040514,1725373781606,-633.802575,0.00013029,2]
[337040515,1725373781636,-219.80793522,0.00013095,2]
[337040517,1725373781663,-444.94,0.00013195,2]
[337040519,1725373781692,-210.0,0.0001327,2]
[337040520,1725373781724,-250.0,0.00013306,2]
[337040521,1725373781754,-300.0,0.00013314,2]
[337040522,1725373781783,-716.37648259,0.00013315,2]
[337040523,1725373781813,-256.13610359,0.00013315,2]
[337040524,1725373781840,-150.0,0.00013315,2]
[337040525,1725373781868,-150.0,0.00013315,2]
[337040526,1725373781898,-320.63447673,0.00013315,2]
[337040528,1725373781925,-150.06169241,0.00013315,2]
[337040529,1725373781953,-150.0,0.00013315,2]
[337040531,1725373781980,-132.836774,0.00013315,2]
[337040532,1725373782016,-17.163226,0.00013315,2]
[337040533,1725373782044,-150.0,0.00013315,2]
[337040534,1725373782072,-150.0,0.00013315,2]
[337040535,1725373782100,-150.0,0.00013315,2]
[337040536,1725373782131,-150.0,0.00013315,2]
[337040537,1725373782158,-150.0455999,0.00013315,2]
[337040538,1725373782186,-150.0,0.00013315,2]
[337040539,1725373782213,-716.37648259,0.0001333,2]
[337040540,1725373782243,-256.13610359,0.0001333,2]
[337040541,1725373782277,-320.63447673,0.0001333,2]
[337040542,1725373782308,-707.76,0.00013339,2]
[337040543,1725373782335,-150.0,0.00013341,2]
[337040544,1725373782364,-716.37648259,0.00013345,2]
[337040545,1725373782392,-256.13610359,0.00013345,2]
[337040546,1725373782423,-43.96756455,0.00013345,2]
[337040547,1725373782461,-276.66691218,0.00013345,2]
[337040548,1725373782488,-1683.71,0.00013346,2]
[337040549,1725373782516,-716.37648259,0.0001336,2]
[337040550,1725373782544,-256.13610359,0.0001336,2]
[337040551,1725373782573,-320.63447673,0.0001336,2]
[337040552,1725373782732,-150.0,0.00013367,2]
[337040553,1725373782759,-645.59544104,0.00013375,2]
[337040554,1725373782794,-70.78104155,0.00013375,2]
[337040555,1725373782821,-256.13610359,0.00013375,2]
[337040556,1725373782848,-320.63447673,0.00013375,2]
[337040557,1725373782878,-200.0,0.00013388,2]
[337040558,1725373782907,-3237.04441767,0.00013388,2]
[337040559,1725373782943,-4084.59603954,0.00013388,2]
[337040560,1725373782978,-4084.59603954,0.00013388,2]
[337040561,1725373783018,-4084.59603954,0.00013388,2]
[337040562,1725373783054,-4084.59603954,0.00013388,2]
[337040563,1725373783098,-4084.59603954,0.00013388,2]
[337040564,1725373783155,-239.97538463,0.00013388,2]
[337040565,1725373783182,-150.0,0.00013389,2]
[337040566,1725373783210,-716.37648259,0.0001339,2]
[337040567,1725373783238,-256.13610359,0.0001339,2]
[337040568,1725373783269,-320.63447673,0.0001339,2]
[337040569,1725373783297,-150.0,0.00013393,2]
[337040570,1725373783329,-716.37648259,0.00013405,2]
[337040571,1725373783357,-256.13610359,0.00013405,2]
[337040572,1725373783384,-320.63447673,0.00013405,2]
[337040573,1725373783416,-156.29,0.0001341,2]
[337040574,1725373783444,-802.03652909,0.0001341,2]
[337040575,1725373806366,-204.26810101,0.00013314,2]
[337040586,1725373831599,-38.05101444,0.00013314,2]
[337040587,1725373831609,-242.31911543,0.00013317,2]
[337040588,1725373831619,-242.31911543,0.00013319,2]
[337040589,1725373831628,-78.0197747,0.0001341,2]
[337040590,1725373831639,-119.94369621,0.0001341,2]
[337040591,1725373831649,-150.0,0.00013414,2]
[337040592,1725373831658,-150.0,0.00013419,2]
[337040593,1725373831667,-716.37648259,0.0001342,2]
[337040594,1725373831676,-256.13610359,0.0001342,2]
[337040595,1725373831686,-320.63447673,0.0001342,2]
[337040596,1725373831696,-716.37648259,0.00013435,2]
[337040597,1725373831707,-256.13610359,0.00013435,2]
[337040598,1725373831716,-320.63447673,0.00013435,2]
[337040599,1725373831726,-1223.2,0.0001344,2]
[337040600,1725373831735,-150.0,0.00013445,2]
[337040601,1725373831746,-300.0,0.00013449,2]
[337040602,1725373831755,-716.37648259,0.0001345,2]
[337040603,1725373831764,-256.13610359,0.0001345,2]
[337040604,1725373831773,-320.63447673,0.0001345,2]
[337040605,1725373831782,-716.37648259,0.00013465,2]
[337040606,1725373831792,-256.13610359,0.00013465,2]
[337040607,1725373831801,-320.63447673,0.00013465,2]
[337040608,1725373831811,-150.0,0.00013471,2]
[337040609,1725373831820,-716.37648259,0.00013479,2]
[337040610,1725373831830,-256.13610359,0.00013479,2]
[337040611,1725373831839,-320.63447673,0.00013479,2]
[337040612,1725373831848,-716.37648259,0.00013494,2]
[337040613,1725373831858,-256.13610359,0.00013494,2]
[337040614,1725373831868,-320.63447673,0.00013494,2]
[337040615,1725373831877,-150.0,0.00013497,2]
[337040616,1725373831887,-150.0,0.000135,2]
[337040617,1725373831896,-716.37648259,0.00013509,2]
[337040618,1725373831906,-256.13610359,0.00013509,2]
[337040619,1725373831915,-320.63447673,0.00013509,2]
[337040620,1725373831924,-150.0,0.00013512,2]
[337040621,1725373831934,-150.0,0.00013523,2]
[337040622,1725373831944,-716.37648259,0.00013524,2]
[337040623,1725373831953,-256.13610359,0.00013524,2]
[337040624,1725373831963,-320.63447673,0.00013524,2]
[337040625,1725373831973,-716.37648259,0.00013539,2]
[337040626,1725373831983,-256.13610359,0.00013539,2]
[337040627,1725373831992,-320.63447673,0.00013539,2]
[337040628,1725373832002,-150.0,0.00013549,2]
[337040629,1725373832011,-379.6734976,0.00013554,2]
[337040630,1725373832451,-336.70298499,0.00013554,2]
[337040631,1725373832461,-256.13610359,0.00013554,2]
[337040632,1725373832470,-320.63447673,0.00013554,2]
[337040633,1725373832480,-716.37648259,0.00013569,2]
[337040634,1725373832492,-256.13610359,0.00013569,2]
[337040635,1725373832501,-320.63447673,0.00013569,2]
[337040636,1725373832511,-150.0,0.00013575,2]
[337040637,1725373832520,-716.37648259,0.00013584,2]
[337040638,1725373832530,-256.13610359,0.00013584,2]
[337040639,1725373832539,-320.63447673,0.00013584,2]
[337040640,1725373832548,-150.0,0.00013599,2]
[337040641,1725373832737,-716.37648259,0.00013599,2]
[337040642,1725373832748,-256.13610359,0.00013599,2]
[337040643,1725373832758,-320.63447673,0.00013599,2]
[337040644,1725373832768,-171.0,0.00013599,2]
[337040645,1725373832778,-150.0,0.00013601,2]
[337040646,1725373832787,-150.0,0.00013611,2]
[337040648,1725373832797,-716.37648259,0.00013614,2]
[337040650,1725373832806,-256.13610359,0.00013614,2]
[337040652,1725373832816,-320.63447673,0.00013614,2]
[337040653,1725373832825,-150.0,0.00013627,2]
[337040655,1725373832834,-716.37648259,0.00013629,2]
[337040657,1725373832844,-256.13610359,0.00013629,2]
[337040659,1725373832853,-320.63447673,0.00013629,2]
[337040661,1725373832862,-716.37648259,0.00013644,2]
[337040663,1725373832872,-256.13610359,0.00013644,2]
[337040665,1725373832882,-320.63447673,0.00013644,2]
[337040667,1725373832891,-210.0,0.0001365,2]
[337040669,1725373832900,-150.0,0.00013652,2]
[337040671,1725373832910,-716.37648259,0.00013659,2]
[337040672,1725373832919,-256.13610359,0.00013659,2]
[337040674,1725373832929,-320.63447673,0.00013659,2]
[337040676,1725373832938,-716.37648259,0.00013674,2]
[337040678,1725373832947,-256.13610359,0.00013674,2]
[337040680,1725373832957,-320.63447673,0.00013674,2]
[337040682,1725373832966,-150.0,0.00013678,2]
[337040684,1725373832975,-150.0,0.00013685,2]
[337040686,1725373832985,-150.0,0.00013685,2]
[337040688,1725373832996,-150.0,0.00013685,2]
[337040690,1725373833006,-150.0,0.00013685,2]
[337040692,1725373833016,-716.37648259,0.00013689,2]
[337040694,1725373833025,-256.13610359,0.00013689,2]
[337040696,1725373833035,-320.63447673,0.00013689,2]
[337040698,1725373833045,-511.54,0.00013699,2]
[337040700,1725373833054,-2751.0,0.00013699,2]
[337040701,1725373833064,-184.45,0.00013699,2]
[337040702,1725373833074,-716.37648259,0.00013704,2]
[337040704,1725373833083,-256.13610359,0.00013704,2]
[337040706,1725373833093,-320.63447673,0.00013704,2]
[337040707,1725373833103,-150.0,0.00013704,2]
[337040708,1725373833113,-150.0,0.0001371,2]
[337040709,1725373833123,-716.37648259,0.00013719,2]
[337040710,1725373833132,-256.13610359,0.00013719,2]
[337040711,1725373833142,-320.63447673,0.00013719,2]
[337040712,1725373833153,-150.0,0.0001373,2]
[337040713,1725373833163,-716.37648259,0.00013733,2]
[337040714,1725373833173,-256.13610359,0.00013733,2]
[337040715,1725373833182,-320.63447673,0.00013733,2]
[337040717,1725373833192,-243.71,0.00013744,2]
[337040718,1725373833203,-716.37648259,0.00013748,2]
[337040720,1725373833213,-256.13610359,0.00013748,2]
[337040722,1725373833222,-320.63447673,0.00013748,2]
[337040724,1725373833231,-150.0,0.00013756,2]
[337040726,1725373833241,-716.37648259,0.00013763,2]
[337040728,1725373833255,-256.13610359,0.00013763,2]
[337040730,1725373833271,-320.63447673,0.00013763,2]
[337040732,1725373833280,-716.37648259,0.00013778,2]
[337040734,1725373833289,-256.13610359,0.00013778,2]
[337040736,1725373833299,-320.63447673,0.00013778,2]
[337040738,1725373833310,-150.0,0.00013782,2]
[337040739,1725373833319,-716.37648259,0.00013793,2]
[337040740,1725373833329,-256.13610359,0.00013793,2]
[337040741,1725373833341,-320.63447673,0.00013793,2]
[337040742,1725373833350,-716.37648259,0.00013808,2]
[337040743,1725373833360,-254.26419554,0.00013808,2]
[337040744,1725373833372,-1.87190805,0.00013808,2]
[337040745,1725373833382,-150.0,0.00013808,2]
[337040746,1725373833391,-147.12812195,0.00013808,2]
[337040757,1725373837512,-173.50635478,0.00013808,2]
[337040758,1725373837521,-150.0,0.00013808,2]
[337040759,1725373837531,-150.0,0.00013808,2]
[337040761,1725373837540,-150.0,0.00013808,2]
[337040763,1725373837549,-716.37648259,0.00013823,2]
[337040765,1725373837558,-256.13610359,0.00013823,2]
[337040767,1725373837568,-320.63447673,0.00013823,2]
[337040769,1725373837577,-150.0,0.00013834,2]
[337040771,1725373837587,-391.40330524,0.00013838,2]
[337040773,1725373837598,-324.97317735,0.00013838,2]
[337040775,1725373837607,-256.13610359,0.00013838,2]
[337040777,1725373837616,-202.74877162,0.00013838,2]
[337040779,1725373837627,-117.88570511,0.00013838,2]
[337040781,1725373837636,-716.37648259,0.00013853,2]
[337040783,1725373837645,-256.13610359,0.00013853,2]
[337040785,1725373837654,-320.63447673,0.00013853,2]
[337040787,1725373837663,-150.0,0.0001386,2]
[337040789,1725373837672,-716.37648259,0.00013868,2]
[337040791,1725373837681,-256.13610359,0.00013868,2]
[337040793,1725373837691,-320.63447673,0.00013868,2]
[337040795,1725373837701,-150.0,0.0001387,2]
[337040797,1725373837710,-716.37648259,0.00013883,2]
[337040799,1725373837719,-256.13610359,0.00013883,2]
[337040801,1725373837728,-320.63447673,0.00013883,2]
[337040803,1725373837737,-150.0,0.00013886,2]
[337040804,1725373837747,-716.37648259,0.00013898,2]
[337040806,1725373837756,-256.13610359,0.00013898,2]
[337040807,1725373837765,-320.63447673,0.00013898,2]
[337040808,1725373837774,-150.0,0.00013907,2]
[337040809,1725373837784,-150.0,0.00013912,2]
[337040810,1725373837793,-716.37648259,0.00013913,2]
[337040811,1725373837802,-256.13610359,0.00013913,2]
[337040812,1725373837812,-320.63447673,0.00013913,2]
[337040813,1725373837822,-716.37648259,0.00013928,2]
[337040814,1725373837831,-256.13610359,0.00013928,2]
[337040815,1725373837841,-320.63447673,0.00013928,2]
[337040816,1725373837850,-150.0,0.00013938,2]
[337040817,1725373837860,-716.37648259,0.00013943,2]
[337040819,1725373837870,-256.13610359,0.00013943,2]
[337040821,1725373837879,-320.63447673,0.00013943,2]
[337040823,1725373837888,-716.37648259,0.00013958,2]
[337040824,1725373837897,-256.13610359,0.00013958,2]
[337040826,1725373837907,-320.63447673,0.00013958,2]
[337040837,1725373838060,-150.0,0.00013964,2]
[337040840,1725373838080,-716.37648259,0.00013973,2]
[337040842,1725373838090,-256.13610359,0.00013973,2]
[337040844,1725373838099,-320.63447673,0.00013973,2]
[337040845,1725373838108,-716.37648259,0.00013988,2]
[337040847,1725373838118,-256.13610359,0.00013988,2]
[337040849,1725373838127,-320.63447673,0.00013988,2]
[337040851,1725373838137,-150.0,0.0001399,2]
[337040853,1725373838146,-542.3,0.00013995,3]
[337040855,1725373838155,-180.76,0.00013996,3]
[337040857,1725373838165,-716.37648259,0.00014002,2]
[337040859,1725373838174,-256.13610359,0.00014002,2]
[337040861,1725373838183,-320.63447673,0.00014002,2]
[337040863,1725373838192,-150.0,0.00014005,2]
[337040865,1725373838202,-433.82,0.00014006,3]
[337040867,1725373838211,-361.52,0.00014006,3]
[337040869,1725373838220,-150.0,0.00014016,2]
[337040871,1725373838229,-716.37648259,0.00014017,2]
[337040872,1725373838238,-256.13610359,0.00014017,2]
[337040874,1725373838249,-320.63447673,0.00014017,2]
[337040876,1725373838260,-210.0,0.0001402,2]
[337040878,1725373838271,-716.37648259,0.00014032,2]
[337040880,1725373838280,-256.13610359,0.00014032,2]
[337040882,1725373838289,-320.63447673,0.00014032,2]
[337040884,1725373838299,-150.0,0.00014042,2]
[337040886,1725373838309,-716.37648259,0.00014047,2]
[337040888,1725373838319,-256.13610359,0.00014047,2]
[337040890,1725373838328,-320.63447673,0.00014047,2]
[337040892,1725373838338,-150.0,0.00014055,2]
[337040894,1725373838347,-150.0,0.00014055,2]
[337040896,1725373838357,-150.0,0.00014055,2]
[337040898,1725373838366,-150.0,0.00014055,2]
[337040900,1725373838376,-716.37648259,0.00014062,2]
[337040902,1725373838385,-256.13610359,0.00014062,2]
[337040904,1725373838394,-320.63447673,0.00014062,2]
[337040906,1725373838404,-150.0,0.00014068,2]
[337040908,1725373838414,-716.37648259,0.00014077,2]
[337040910,1725373838423,-256.13610359,0.00014077,2]
[337040912,1725373838433,-320.63447673,0.00014077,2]
[337040914,1725373838442,-716.37648259,0.00014092,2]
[337040916,1725373838452,-256.13610359,0.00014092,2]
[337040918,1725373838461,-320.63447673,0.00014092,2]
[337040920,1725373838470,-150.0,0.00014094,2]
[337040921,1725373838480,-150.0,0.00014104,2]
[337040923,1725373838489,-716.37648259,0.00014107,2]
[337040925,1725373838502,-256.13610359,0.00014107,2]
[337040927,1725373838512,-320.63447673,0.00014107,2]
[337040929,1725373838521,-150.0,0.0001412,2]
[337040931,1725373838531,-716.37648259,0.00014122,2]
[337040933,1725373838540,-256.13610359,0.00014122,2]
[337040935,1725373838550,-320.63447673,0.00014122,2]
[337040937,1725373838559,-716.37648259,0.00014137,2]
[337040939,1725373838570,-256.13610359,0.00014137,2]
[337040941,1725373838580,-320.63447673,0.00014137,2]
[337040943,1725373838589,-150.0,0.00014146,2]
[337040945,1725373838600,-716.37648259,0.00014152,2]
[337040947,1725373838610,-256.13610359,0.00014152,2]
[337040949,1725373838620,-320.63447673,0.00014152,2]
[337040951,1725373838630,-467.93997373,0.00014167,2]
[337040954,1725373838651,-248.43650886,0.00014167,2]
[337040956,1725373838661,-256.13610359,0.00014167,2]
[337040958,1725373838671,-320.63447673,0.00014167,2]
[337040960,1725373838681,-150.0,0.00014172,2]
[337040962,1725373838691,-716.37648259,0.00014182,2]
[337040964,1725373838704,-256.13610359,0.00014182,2]
[337040966,1725373838714,-716.37648259,0.00014197,2]
[337040968,1725373838725,-256.13610359,0.00014197,2]
[337040970,1725373838735,-150.0,0.00014198,2]
[337040972,1725373838751,-150.0,0.00014203,2]
[337040974,1725373838760,-716.37648259,0.00014212,2]
[337040976,1725373838770,-256.13610359,0.00014212,2]
[337040978,1725373838779,-150.0,0.00014224,2]
[337040979,1725373838788,-716.37648259,0.00014227,2]
[337040981,1725373838798,-256.13610359,0.00014227,2]
[337040983,1725373838807,-150.0,0.0001424,2]
[337040985,1725373838817,-716.37648259,0.00014242,2]
[337040987,1725373838828,-256.13610359,0.00014242,2]
[337040990,1725373838838,-281.514272,0.00014247,2]
[337040992,1725373838848,-150.0,0.00014249,2]
[337040994,1725373838858,-716.37648259,0.00014257,2]
[337040996,1725373838869,-256.13610359,0.00014257,2]
[337040998,1725373838879,-716.37648259,0.00014271,2]
[337041000,1725373838889,-256.13610359,0.00014271,2]
[337041001,1725373838899,-150.0,0.00014275,2]
[337041002,1725373838909,-421.54,0.00014285,6]
[337041003,1725373838920,-716.37648259,0.00014286,2]
[337041004,1725373838930,-256.13610359,0.00014286,2]
[337041005,1725373838940,-716.37648259,0.00014301,2]
[337041006,1725373838950,-256.13610359,0.00014301,2]
[337041008,1725373838959,-150.0,0.00014301,2]
[337041010,1725373838969,-150.0,0.00014301,2]
[337041012,1725373838979,-150.0,0.00014301,2]
[337041014,1725373838988,-150.0,0.00014301,2]
[337041016,1725373839005,-716.37648259,0.00014316,2]
[337041018,1725373839015,-256.13610359,0.00014316,2]
[337041020,1725373839025,-150.0,0.00014327,2]
[337041022,1725373839036,-716.37648259,0.00014331,2]
[337041024,1725373839046,-256.13610359,0.00014331,2]
[337041026,1725373839056,-716.37648259,0.00014346,2]
[337041028,1725373839066,-256.13610359,0.00014346,2]
[337041030,1725373839076,-150.0,0.00014353,2]
[337041032,1725373839086,-716.37648259,0.00014361,2]
[337041034,1725373839096,-256.13610359,0.00014361,2]
[337041035,1725373839105,-716.37648259,0.00014376,2]
[337041037,1725373839114,-256.13610359,0.00014376,2]
[337041039,1725373839123,-150.0,0.00014379,2]
[337041041,1725373839132,-511.54,0.00014384,2]
[337041043,1725373839141,-210.0,0.0001439,2]
[337041045,1725373839151,-716.37648259,0.00014391,2]
[337041047,1725373839160,-256.13610359,0.00014391,2]
[337041049,1725373839170,-150.0,0.000144,2]
[337041051,1725373839180,-150.0,0.00014405,2]
[337041054,1725373839189,-716.37648259,0.00014406,2]
[337041056,1725373839199,-256.13610359,0.00014406,2]
[337041058,1725373839210,-716.37648259,0.00014421,2]
[337041059,1725373839220,-256.13610359,0.00014421,2]
[337041061,1725373839230,-150.0,0.00014425,2]
[337041063,1725373839240,-150.0,0.00014425,2]
[337041065,1725373839255,-150.0,0.00014425,2]
[337041067,1725373839269,-150.0,0.00014425,2]
[337041069,1725373839278,-150.0,0.00014431,2]
[337041071,1725373839287,-716.37648259,0.00014436,2]
[337041073,1725373839298,-256.13610359,0.00014436,2]
[337041075,1725373839308,-839.41,0.0001444,6]
[337041077,1725373839318,-716.37648259,0.00014451,2]
[337041079,1725373839328,-256.13610359,0.00014451,2]
[337041082,1725373839339,-150.0,0.00014457,2]
[337041085,1725373839350,-716.37648259,0.00014466,2]
[337041087,1725373839360,-256.13610359,0.00014466,2]
[337041089,1725373839370,-716.37648259,0.00014481,2]
[337041091,1725373839380,-256.13610359,0.00014481,2]
[337041093,1725373839389,-150.0,0.00014483,2]
[337041094,1725373839399,-716.37648259,0.00014496,2]
[337041095,1725373839408,-256.13610359,0.00014496,2]
[337041097,1725373839418,-150.0,0.00014499,2]
[337041098,1725373839427,-150.0,0.00014509,2]
[337041100,1725373839437,-716.37648259,0.00014511,2]
[337041101,1725373839447,-256.13610359,0.00014511,2]
[337041103,1725373839456,-716.37648259,0.00014526,2]
[337041104,1725373839466,-256.13610359,0.00014526,2]
[337041106,1725373839476,-150.0,0.00014535,2]
[337041107,1725373839486,-716.37648259,0.0001454,2]
[337041109,1725373839499,-256.13610359,0.0001454,2]
[337041110,1725373839508,-716.37648259,0.00014555,2]
[337041112,1725373839518,-256.13610359,0.00014555,2]
[337041113,1725373839527,-150.0,0.00014561,2]
[337041115,1725373839537,-716.37648259,0.0001457,2]
[337041117,1725373839547,-256.13610359,0.0001457,2]
[337041118,1725373839559,-1435.8697,0.00014585,2]
[337041120,1725373839570,-716.37648259,0.00014585,2]
[337041122,1725373839580,-256.13610359,0.00014585,2]
[337041123,1725373839590,-150.0,0.00014587,2]
[337041124,1725373839599,-150.0,0.00014597,2]
[337041126,1725373839609,-280.71447055,0.00014598,2]
[337041128,1725373839619,-150.0,0.000146,2]
[337041129,1725373839629,-150.0,0.000146,2]
[337041131,1725373839639,-150.0,0.000146,2]
[337041132,1725373839648,-150.0,0.000146,2]
[337041134,1725373839658,-150.0,0.000146,2]
[337041136,1725373839668,-150.0,0.000146,2]
[337041137,1725373839677,-150.0,0.000146,2]
[337041139,1725373839687,-716.37648259,0.000146,2]
[337041141,1725373839697,-256.13610359,0.000146,2]